bitfinex/quotes_ETHUSD_20241116
["timestamp","ask_amount","ask_price","bid_price","bid_amount"]
[1731718878386,3.24181,3084.7,3084.3,0.7786]
[1731718879165,3.24192,3084.6,3084.3,0.7786]
[1731718879755,3.2417,3084.8,3084.3,0.7786]
[1731718880582,3.24178,3084.8,3084.3,0.7786]
[1731718881795,3.24178,3084.8,3084.3,4.02079]
[1731718882161,3.24178,3084.8,3084.3,0.7786]
[1731718882699,3.24178,3084.8,3084.3,4.72940006]
[1731718882873,3.24156,3085.0,3084.3,1.48718006]
[1731718883200,3.24159,3084.9,3084.3,1.48718006]
[1731718883354,3.24126,3085.3,3084.4,0.06484061]
[1731718883696,3.24126,3085.3,3084.7,0.7786]
[1731718883853,3.24126,3085.3,3084.7,4.422381]
[1731718884056,3.24126,3085.3,3084.7,1.180641]
[1731718884312,3.24139,3085.1,3084.7,0.7786]
[1731718884467,3.24101,3085.5,3084.7,0.7786]
[1731718884670,3.24097,3085.5,3084.9,3.24149]
[1731718884862,3.24097,3085.5,3085.1,0.7558]
[1731718885064,3.2408,3085.7,3085.1,0.7558]
[1731718885267,3.24058,3085.9,3085.3,0.7558]
[1731718885463,3.24066,3085.8,3085.3,0.7558]
[1731718885696,3.24058,3085.9,3085.3,4.396588]
[1731718885865,3.24037,3086.1,3085.4,3.24097]
[1731718886422,3.23993,3086.5,3085.5,0.06481393]
[1731718886697,3.24013,3086.3,3085.9,0.7558]
[1731718888277,3.23998,3086.5,3085.9,4.395966]
[1731718888594,3.23998,3086.5,3085.9,1.155446]
[1731718888758,3.23998,3086.5,3085.9,3.99634]
[1731718889280,6.47999,3086.5,3085.9,3.99634]
[1731718889484,3.23975,3086.7,3086.1,3.24031]
[1731718889657,3.23987,3086.6,3086.2,0.7558]
[1731718890060,3.23954,3086.9,3086.2,0.7558]
[1731718890366,3.23967,3086.8,3086.2,0.7558]
[1731718890568,3.23985,3086.6,3086.2,0.7558]
[1731718891788,3.23972,3086.7,3086.2,0.7558]
[1731718892171,3.24012,3086.3,3086.2,0.7558]
[1731718892497,3.24012,3086.3,3085.9,0.7558]
[1731718893296,3.24044,3086.0,3085.9,0.7558]
[1731718893604,3.24065,3085.8,3085.6,0.7558]
[1731718893776,3.24022,3086.3,3085.6,0.7558]
[1731718893963,3.24024,3086.2,3085.6,0.7558]
[1731718894165,3.24042,3086.1,3085.6,0.7558]
[1731718894366,3.24042,3086.1,3085.6,1.155468]
[1731718894672,0.8136,3086.7,3085.8,3.24056]
[1731718895075,0.8136,3086.7,3085.6,4.396308]
[1731718895076,3.24033,3086.1,3085.6,1.155468]
[1731718895482,3.23981,3086.6,3085.6,1.155468]
[1731718895483,3.24051,3086.0,3085.6,1.155468]
[1731718895682,3.24051,3086.0,3085.6,0.7558]
[1731718897727,3.24058,3085.9,3085.6,0.7558]
[1731718897936,3.24051,3086.0,3085.6,0.7558]
[1731718898081,3.24066,3085.8,3085.6,0.7558]
[1731718898282,3.24075,3085.7,3085.6,0.7558]
[1731718899383,3.2405,3086.0,3085.5,0.399691]
[1731718899586,3.2405,3086.0,3085.4,3.99684]
[1731718899895,3.24033,3086.2,3085.6,3.2408]
[1731718900210,3.24033,3086.2,3085.8,0.7558]
[1731718900781,3.23886,3087.5,3086.1,3.0]
[1731718900986,3.23905,3087.4,3086.9,0.7558]
[1731718901190,0.8136,3087.9,3086.9,0.7558]
[1731718901397,3.2391,3087.3,3086.9,0.7558]
[1731718902136,3.23847,3087.9,3086.9,0.7558]
[1731718902284,3.23847,3087.9,3087.0,3.7558]
[1731718902488,3.23847,3087.9,3087.1,0.699526]
[1731718903212,3.23867,3087.7,3087.1,3.938706]
[1731718903710,6.47702,3087.9,3087.2,3.23916]
[1731718903910,3.23855,3087.8,3087.2,3.23916]
[1731718904098,3.23855,3087.8,3087.1,3.938706]
[1731718904703,3.23855,3087.8,3087.1,4.00348306]
[1731718904911,3.23855,3087.8,3087.2,0.77592831]
[1731718905114,4.05167,3088.3,3087.2,0.77592831]
[1731718905416,3.3808777,3087.6,3087.1,0.699526]
[1731718905615,3.23888,3087.5,3087.1,0.699526]
[1731718905813,0.1420377,3087.6,3087.1,0.699526]
[1731718906247,3.3808677,3087.6,3087.1,0.699526]
[1731718906450,3.23908,3087.3,3087.0,0.7558]
[1731718906606,3.23918,3087.2,3087.0,0.7558]
[1731718907240,3.23908,3087.3,3087.0,0.7558]
[1731718907241,3.23928,3087.1,3087.0,0.7558]
[1731718907544,3.23918,3087.2,3086.7,0.7825]
[1731718907845,3.23911,3087.3,3086.7,0.7825]
[1731718908141,3.23936,3087.1,3086.7,0.7825]
[1731718908341,3.23936,3087.1,3086.7,1.2555501]
[1731718909644,3.23951,3086.9,3086.7,1.2555501]
[1731718910005,3.23951,3086.9,3086.7,0.7825]
[1731718910201,3.23936,3087.1,3086.7,0.7825]
[1731718910411,3.23942,3087.0,3086.7,0.7825]
[1731718913407,3.23919,3087.2,3086.7,0.7825]
[1731718913610,3.23919,3087.2,3086.7,4.02219]
[1731718913810,3.23919,3087.2,3086.7,4.75487567]
[1731718914047,3.3808277,3087.6,3086.8,4.03108]
[1731718914253,0.1420377,3087.6,3087.0,3.2393]
[1731718914420,3.3808077,3087.6,3087.1,0.40308]
[1731718914622,3.3808077,3087.6,3087.2,0.7915]
[1731718915154,0.1420377,3087.6,3087.2,0.7915]
[1731718915358,0.1420377,3087.6,3087.3,0.443384]
[1731718915930,3.23895,3087.5,3087.3,0.443384]
[1731718916253,3.3808677,3087.6,3087.2,0.7915]
[1731718917343,0.1420377,3087.6,3087.2,4.6895394]
[1731718918552,0.1420377,3087.6,3087.2,1.4504294]
[1731718918737,0.1420377,3087.6,3087.3,0.44504294]
[1731718919236,0.1420377,3087.6,3087.5,7.03036]
[1731718919444,0.1420377,3087.6,3087.5,7.09511872]
[1731718919638,0.1420377,3087.6,3087.5,7.03036]
[1731718920045,3.23778,3088.6,3087.5,3.7915]
[1731718920241,9.46479109,3092.5,3087.5,3.7915]
[1731718920242,3.23616,3090.1,3088.6,3.0]
[1731718920442,3.23616,3090.1,3088.5,5.14653418]
[1731718920443,0.7815,3089.6,3088.5,0.7915]
[1731718920617,3.23756,3088.8,3088.5,0.7915]
[1731718921133,3.23771,3088.6,3088.0,3.7915]
[1731718921336,0.7815,3088.9,3088.0,1.17065]
[1731718921535,3.23815,3088.2,3088.0,1.17065]
[1731718921774,3.23815,3088.2,3088.0,0.7915]
[1731718922242,3.23815,3088.2,3087.9,0.36]
[1731718922555,3.23834,3088.0,3087.7,0.8025]
[1731718923457,0.7815,3088.9,3087.7,1.45207762]
[1731718923458,3.23802,3088.3,3087.7,1.45207762]
[1731718923753,3.23824,3088.1,3087.7,1.45207762]
[1731718924131,3.23823,3088.1,3087.7,1.45207762]
[1731718925322,3.23835,3088.0,3087.7,1.45207762]
[1731718925526,3.23823,3088.1,3087.7,1.45207762]
[1731718926362,3.23834,3088.0,3087.7,1.45207762]
[1731718926519,3.23844,3087.9,3087.7,1.45207762]
[1731718926719,3.23866,3087.7,3087.4,0.7884]
[1731718927159,3.23844,3087.9,3087.4,0.7884]
[1731718928354,3.23836,3088.0,3087.4,4.0273]
[1731718928534,3.23836,3088.0,3087.4,4.43003]
[1731718929643,3.23836,3088.0,3087.6,0.64279309]
[1731718930494,3.23856,3087.8,3087.6,0.64279309]
[1731718930890,3.23836,3088.0,3087.6,0.64279309]
[1731718931194,9.48008121,3091.7,3088.3,3.23801]
[1731718931195,3.23737,3089.0,3088.3,3.23801]
[1731718931394,3.23737,3089.0,3088.4,0.7884]
[1731718931829,6.47476,3089.0,3088.4,0.85315137]
[1731718932043,0.7599,3089.4,3088.1,0.7884]
[1731718932234,0.7599,3089.4,3088.2,0.37884]
[1731718932235,3.23769,3088.7,3088.2,0.37884]
[1731718932445,3.23769,3088.7,3088.2,3.37884]
[1731718932626,3.23774,3088.6,3088.2,0.37884]
[1731718932953,3.23783,3088.5,3088.2,0.37884]
[1731718933298,3.23812,3088.3,3087.8,0.7884]
[1731718933499,3.23814,3088.2,3087.8,1.42970409]
[1731718933710,3.23824,3088.1,3087.8,1.42970409]
[1731718934049,3.23804,3088.3,3087.4,0.7884]
[1731718934196,3.23793,3088.4,3087.9,0.7884]
[1731718934592,3.23791,3088.5,3087.9,0.7884]
[1731718935047,3.23782,3088.5,3087.9,4.02683]
[1731718935217,3.23782,3088.5,3088.0,0.402683]
[1731718935703,3.23792,3088.4,3088.0,0.402683]
[1731718935898,3.23792,3088.4,3087.9,0.7884]
[1731718935899,3.23805,3088.3,3087.9,0.7884]
[1731718936532,3.23758,3088.8,3088.2,3.23811]
[1731718936741,3.23758,3088.8,3088.0,3.2383]
[1731718937014,3.23729,3089.0,3088.3,3.23795]
[1731718937215,3.23729,3089.0,3088.2,3.23804]
[1731718937418,3.23752,3088.8,3088.1,0.40267]
[1731718937845,3.23767,3088.7,3088.1,0.40267]
[1731718938410,3.23767,3088.7,3088.1,3.6409]
[1731718938608,3.23733,3089.0,3088.2,3.92604]
[1731718938911,3.23764,3088.7,3088.2,0.68792]
[1731718939101,3.23764,3088.7,3088.2,3.92605]
[1731718939301,3.23747,3088.9,3088.3,3.670882]
[1731718939522,3.23747,3088.9,3088.3,0.432872]
[1731718939738,3.23752,3088.8,3088.3,0.432872]
[1731718940861,3.23747,3088.9,3088.3,3.432872]
[1731718941012,3.23747,3088.9,3088.4,0.7884]
[1731718941220,6.47496,3088.9,3088.4,1.6095995]
[1731718941415,3.23747,3088.9,3088.4,0.7884]
[1731718942059,3.23762,3088.7,3088.5,0.64058758]
[1731718942633,3.23771,3088.6,3088.4,0.7884]
[1731718942872,3.23781,3088.5,3088.4,0.7884]
[1731718943033,3.23789,3088.5,3088.1,0.8118]
[1731718943216,3.23727,3089.1,3088.1,0.8118]
[1731718943559,3.23727,3089.1,3088.6,0.8118]
[1731718943735,3.23727,3089.1,3088.6,4.04949]
[1731718943932,3.9969,3089.3,3088.6,4.04949]
[1731718944140,3.23708,3089.2,3088.6,4.04949]
[1731718944338,3.237,3089.3,3088.6,0.8118]
[1731718944550,3.23722,3089.1,3088.6,0.8118]
[1731718945122,3.237,3089.3,3088.6,1.58863811]
[1731718945355,6.47364,3089.5,3088.8,3.23748]
[1731718945662,0.33750017,3089.7,3088.8,3.23748]
[1731718945663,0.33750017,3089.7,3088.9,0.7661]
[1731718945869,0.819,3090.5,3089.5,0.7661]
[1731718945870,3.23622,3090.1,3089.5,0.7661]
[1731718946166,3.23627,3090.0,3089.5,0.83082868]
[1731718946520,3.23627,3090.0,3089.5,0.7661]
[1731718946764,3.23627,3090.0,3089.5,0.8308287]
[1731718947336,3.23646,3089.8,3089.5,0.7661]
[1731718947658,3.560106,3089.8,3089.5,0.7661]
[1731718947957,3.23664,3089.7,3089.2,1.41305451]
[1731718948187,3.23587,3090.4,3089.2,1.41305451]
[1731718948188,3.23667,3089.6,3089.2,1.41305451]
[1731718948363,3.23667,3089.6,3089.2,0.7661]
[1731718948559,3.23667,3089.6,3088.7,0.7661]
[1731718948560,3.23715,3089.2,3088.7,0.7661]
[1731718948776,3.23722,3089.1,3088.7,0.7661]
[1731718949316,3.23731,3089.0,3088.7,0.7661]
[1731718949594,3.23731,3089.0,3088.5,0.64494835]
[1731718950097,3.23749,3088.9,3088.5,0.64494835]
[1731718950649,3.23683,3089.5,3088.9,0.7661]
[1731718950852,3.23659,3089.7,3089.2,3.23708]
[1731718951053,3.23666,3089.6,3089.0,3.23724]
[1731718951252,3.23666,3089.6,3088.8,3.53184408]
[1731718951513,3.23666,3089.6,3089.0,3.23725]
[1731718951877,3.23645,3089.8,3089.2,3.23707]
[1731718952095,3.23627,3090.0,3089.3,3.06473586]
[1731718952389,3.23636,3089.9,3089.4,3.23679]
[1731718952753,3.23627,3090.0,3089.4,3.23679]
[1731718952953,3.23627,3090.0,3089.3,3.06472963]
[1731718953160,3.23646,3089.8,3089.3,3.0]
[1731718953779,3.23627,3090.0,3089.4,4.00295]
[1731718953966,3.559897,3090.0,3089.4,4.06767965]
[1731718954173,0.323627,3090.0,3089.5,3.23676]
[1731718954374,0.323627,3090.0,3089.6,3.23665]
[1731718954572,0.323627,3090.0,3089.4,4.06767965]
[1731718954775,3.2362,3090.1,3089.4,4.06767965]
[1731718954776,3.23592,3090.4,3089.7,3.23655]
[1731718955394,3.23592,3090.4,3089.5,3.23676]
[1731718955395,3.23604,3090.2,3089.6,3.0]
[1731718955577,3.23604,3090.2,3089.6,6.23662]
[1731718956307,3.23627,3090.0,3089.4,3.7661]
[1731718956615,3.23627,3090.0,3089.5,0.0647282]
[1731718956812,3.23635,3089.9,3089.5,0.0647282]
[1731718957107,3.23627,3090.0,3089.5,0.0647282]
[1731718957789,3.23627,3090.0,3089.6,3.0]
[1731718957996,0.323604,3090.1,3089.6,3.0]
[1731718958311,3.559814,3090.1,3089.5,3.0647282]
[1731718958812,3.23605,3090.2,3089.7,6.23653]
[1731718959111,3.23583,3090.4,3089.8,4.00246]
[1731718959482,3.23565,3090.6,3090.0,3.23622]
[1731718959710,0.1420377,3090.7,3090.1,0.83081898]
[1731718959711,3.3775577,3090.7,3090.1,0.83081898]
[1731718959922,3.23564,3090.6,3090.1,4.00222]
[1731718961074,0.1420377,3090.7,3090.1,4.00222]
[1731718961075,0.1420377,3090.7,3090.2,0.06471382]
[1731718961274,0.1420377,3090.7,3090.3,7.002]
[1731718962214,0.1420377,3090.7,3090.3,0.7661]
[1731718962413,3.23562,3090.6,3090.3,0.7661]
[1731718962718,3.23572,3090.5,3090.3,0.7661]
[1731718963017,3.23562,3090.6,3090.3,0.7661]
[1731718965875,3.23572,3090.5,3089.9,0.7689]
[1731718966075,3.23621,3090.1,3089.9,1.1289]
[1731718966402,3.23624,3090.0,3089.9,0.36]
[1731718968058,3.23642,3089.9,3089.5,0.7689]
[1731718968512,3.23666,3089.6,3089.3,0.64725169]
[1731718969914,3.23677,3089.5,3089.3,0.64725169]
[1731718970313,3.23687,3089.4,3089.3,0.64725169]
[1731718970910,3.23671,3089.6,3089.3,0.64725169]
[1731718971116,3.23677,3089.5,3089.3,0.64725169]
[1731718971415,3.23677,3089.5,3088.9,3.7689]
[1731718971416,3.23688,3089.4,3088.9,3.7689]
[1731718971633,3.23708,3089.2,3088.9,0.7689]
[1731718971831,3.23688,3089.4,3088.9,0.7689]
[1731718972061,0.7984,3090.1,3089.0,0.06473998]
[1731718972371,3.23642,3089.9,3089.3,4.00586]
[1731718972660,4.03455,3090.1,3089.3,0.7689]
[1731718972661,3.23656,3089.7,3089.3,0.7689]
[1731718973916,3.23668,3089.6,3089.3,0.7689]
[1731718974125,3.2366,3089.7,3089.3,0.7689]
[1731718974324,6.47325,3089.7,3089.3,0.7689]
[1731718974534,3.2366,3089.7,3089.3,0.7689]
[1731718974973,3.23637,3089.9,3089.3,0.7689]
[1731718975147,3.23645,3089.8,3089.3,1.23966885]
[1731718975344,3.23657,3089.7,3089.3,1.23966885]
[1731718975864,3.23617,3090.1,3089.4,0.06473308]
[1731718976177,3.23647,3089.8,3089.3,4.23966885]
[1731718976534,3.23625,3090.0,3089.4,3.98452789]
[1731718977230,3.23621,3090.1,3089.5,0.06472538]
[1731718977431,3.23656,3089.7,3089.3,4.23966885]
[1731718977638,3.23656,3089.7,3089.3,3.7689]
[1731718978234,3.23666,3089.6,3089.3,0.7689]
[1731718978430,3.23656,3089.7,3089.3,0.7689]
[1731718979233,3.23687,3089.4,3089.1,0.63692536]
[1731718979501,3.23684,3089.5,3089.1,0.63692536]
[1731718979502,3.23704,3089.3,3089.1,0.63692536]
[1731718979801,3.23705,3089.3,3089.1,0.63692536]
[1731718979955,3.23705,3089.3,3089.2,0.22]
[1731718980661,3.23705,3089.3,3089.1,0.63692536]
[1731718980960,3.23708,3089.2,3089.1,0.63692536]
[1731718981182,3.23681,3089.5,3089.1,0.63692536]
[1731718981704,3.23698,3089.3,3089.1,0.63692536]
[1731718982075,3.23681,3089.5,3089.1,0.63692536]
[1731718982275,3.23688,3089.4,3089.1,0.63692536]
[1731718983257,3.23681,3089.5,3089.1,0.63692536]
[1731718983460,3.23698,3089.3,3089.1,0.63692536]
[1731718984266,3.23698,3089.3,3089.0,0.7689]
[1731718984611,3.23669,3089.6,3089.0,4.0061]
[1731718984812,3.23615,3090.1,3089.0,4.0061]
[1731718984813,3.23639,3089.9,3089.1,0.53036483]
[1731718984957,3.23639,3089.9,3089.2,3.237]
[1731718984958,3.23652,3089.8,3089.2,3.237]
[1731718985162,3.23651,3089.8,3089.2,3.23698]
[1731718985808,3.23627,3090.0,3089.3,0.06473494]
[1731718986102,3.23585,3090.4,3089.8,3.8138]
[1731718986410,3.23585,3090.4,3089.8,3.878522]
[1731718986411,3.23595,3090.3,3089.8,3.878522]
[1731718986562,3.23595,3090.3,3089.8,4.5900282]
[1731718987213,3.23623,3090.1,3089.8,0.8138]
[1731718987360,3.23606,3090.2,3089.8,0.8138]
[1731718987566,3.23606,3090.2,3089.8,3.8138]
[1731718988292,3.23585,3090.4,3089.8,3.87852202]
[1731718988492,3.23565,3090.6,3089.9,4.01318962]
[1731718988493,6.47133,3090.6,3089.9,4.01318962]
[1731718988807,0.1420377,3090.7,3090.0,0.06472197]
[1731718989013,0.1420377,3090.7,3089.9,4.01319962]
[1731718989313,3.23563,3090.6,3090.1,3.23608]
[1731718989552,3.23563,3090.6,3089.9,4.01319962]
[1731718989830,3.23563,3090.6,3089.9,7.24946962]
[1731718990182,3.23604,3090.2,3089.8,0.8138]
[1731718991025,3.23605,3090.2,3089.8,3.8138]
[1731718991395,3.2361,3090.2,3089.8,0.8138]
[1731718991594,3.55971,3090.2,3089.8,0.8138]
[1731718992278,3.23615,3090.1,3089.8,0.8138]
[1731718993747,0.1420377,3090.7,3089.8,0.8138]
[1731718994103,0.1420377,3090.7,3089.8,3.8138]
[1731718994339,3.23593,3090.3,3089.8,3.8138]
[1731718994535,3.23578,3090.5,3089.8,4.58441454]
[1731718994726,3.23578,3090.5,3089.9,3.30098919]
[1731718995332,3.23578,3090.5,3089.9,3.23627]
[1731718996049,6.47159,3090.5,3089.9,3.23627]
[1731718996216,3.23578,3090.5,3089.9,3.23627]
[1731718996422,3.23586,3090.4,3089.9,3.23627]
[1731718998554,3.23586,3090.4,3089.8,4.58441454]
[1731718998738,3.23586,3090.4,3089.8,7.82083454]
[1731718998932,3.23586,3090.4,3089.9,0.88102585]
[1731718999138,3.23583,3090.4,3090.0,0.8138]
[1731719000232,3.23562,3090.6,3090.0,4.04997]
[1731719000445,3.23579,3090.5,3090.0,0.8138]
[1731719000778,3.23584,3090.4,3090.0,0.8138]
[1731719000901,3.23562,3090.6,3090.0,0.8138]
[1731719000902,0.33776577,3090.5,3090.0,0.8138]
[1731719001103,0.8291,3090.2,3089.0,0.8138]
[1731719001339,0.8291,3090.0,3089.0,0.8138]
[1731719001544,3.52779309,3090.4,3088.6,1.294097]
[1731719001545,0.9811377,3090.7,3089.2,0.8138]
[1731719001851,3.23597,3090.3,3089.7,3.23653]
[1731719002154,3.23577,3090.5,3090.0,0.8138]
[1731719002441,4.2066977,3090.7,3090.0,4.05003]
[1731719002650,3.3775977,3090.7,3090.1,3.23613]
[1731719002848,0.1420377,3090.7,3090.1,3.23613]
[1731719003047,3.3775677,3090.7,3090.1,3.23613]
[1731719003405,7.27446847,3090.7,3090.1,3.23613]
[1731719003612,3.23573,3090.5,3090.0,0.8138]
[1731719004822,4.03885847,3090.7,3090.1,3.23609]
[1731719005172,3.3775677,3090.7,3090.1,3.30081066]
[1731719005371,0.1420377,3090.7,3090.2,3.23603]
[1731719005773,0.1420377,3090.7,3090.1,3.23609]
[1731719006127,0.1420377,3090.7,3090.3,3.23592]
[1731719006574,0.1420377,3090.7,3090.1,3.23609]
[1731719006749,3.3775677,3090.7,3090.1,3.23609]
[1731719007148,3.3775677,3090.7,3090.1,6.47215]
[1731719007347,3.3775677,3090.7,3090.1,3.23606]
[1731719007562,3.23562,3090.6,3090.1,3.23606]
[1731719008388,3.3775777,3090.7,3090.1,3.23606]
[1731719009284,3.23562,3090.6,3090.0,4.11475754]
[1731719009485,0.1420377,3090.7,3090.0,4.11475754]
[1731719009486,4.03890047,3090.7,3090.1,3.23607]
[1731719010642,3.3775677,3090.7,3090.1,3.23607]
[1731719011277,0.1420377,3090.7,3090.1,3.23607]
[1731719011673,3.3775477,3090.7,3090.1,3.23607]
[1731719012390,0.1420377,3090.7,3090.2,3.236]
[1731719013184,0.1420377,3090.7,3090.2,3.97100875]
[1731719014078,0.1420377,3090.7,3090.3,3.23591]
[1731719016594,0.1420377,3090.7,3090.4,3.23581]
[1731719018073,0.1420377,3090.7,3090.5,3.23567]
[1731719018591,0.1420377,3090.7,3090.4,6.47148]
[1731719018788,0.1420377,3090.7,3090.4,3.23573]
[1731719019173,0.1420377,3090.7,3090.4,6.47148]
[1731719019372,0.1420377,3090.7,3090.6,4.02111]
[1731719020888,0.1420377,3090.7,3090.6,7.02111]
[1731719022005,0.1420377,3090.7,3090.6,7.08581148]
[1731719022207,0.1420377,3090.7,3090.6,7.02111]
[1731719022378,0.1420377,3090.7,3090.6,7.08581153]
[1731719022578,0.1420377,3090.7,3090.6,8.51360207]
[1731719022808,0.1420377,3090.7,3090.6,8.44890054]
[1731719023308,0.1420377,3090.7,3090.6,7.02111]
[1731719025206,0.1420377,3090.7,3090.5,3.0]
[1731719025404,0.1420377,3090.7,3090.6,3.23561]
[1731719025575,0.1420377,3090.7,3090.6,6.23561]
[1731719027397,0.1420377,3090.7,3090.5,3.0]
[1731719028012,0.1420377,3090.7,3090.2,3.23599]
[1731719028798,0.1420377,3090.7,3090.1,1.0971]
[1731719029035,0.1420377,3090.7,3090.3,3.23584]
[1731719029332,0.1420377,3090.7,3090.5,3.2357]
[1731719029833,0.1420377,3090.7,3090.4,6.23575]
[1731719030328,0.1420377,3090.7,3090.4,3.0]
[1731719030633,0.1420377,3090.7,3090.4,6.23582]
[1731719031249,0.1420377,3090.7,3090.3,0.06471155]
[1731719031405,0.1420377,3090.7,3090.2,7.56205132]
[1731719031603,0.1420377,3090.7,3090.3,3.23592]
[1731719032034,0.1420377,3090.7,3090.2,4.32605132]
[1731719032035,0.7827,3090.6,3090.2,0.65675232]
[1731719033046,0.1420377,3090.7,3090.2,3.89271232]
[1731719033415,0.1420377,3090.7,3090.2,4.64442817]
[1731719035417,0.1420377,3090.7,3090.3,0.3236]
[1731719035642,0.1420377,3090.7,3090.4,0.7824]
[1731719035857,0.1420377,3090.7,3090.4,0.84711616]
[1731719036151,0.1420377,3090.7,3090.4,0.7824]
[1731719037104,0.1420377,3090.7,3090.4,4.01821]
[1731719037337,0.1420377,3090.7,3090.4,0.7824]
[1731719037540,0.1420377,3090.7,3090.3,6.55952]
[1731719037725,0.1420377,3090.7,3090.3,7.67992682]
[1731719037923,0.1420377,3090.7,3090.3,3.3236]
[1731719038127,4.01833,3090.6,3090.3,0.3236]
[1731719038321,0.7827,3090.6,3090.3,0.3236]
[1731719038860,4.01837,3090.6,3090.3,0.3236]
[1731719041530,3.23573,3090.5,3090.3,0.3236]
[1731719041725,3.23582,3090.4,3090.2,0.65675232]
[1731719044728,3.23582,3090.4,3090.0,3.0]
[1731719044915,3.23572,3090.5,3090.0,6.938107]
[1731719045455,0.7827,3090.6,3090.0,6.938017]
[1731719045654,0.7827,3090.6,3090.1,3.23612]
[1731719045832,4.01832,3090.6,3090.1,3.23612]
[1731719046037,0.7827,3090.6,3090.2,3.23603]
[1731719046230,0.1420377,3090.7,3090.3,3.2359]
[1731719046418,3.3775577,3090.7,3090.2,0.37101779]
[1731719047562,3.3775577,3090.7,3090.2,3.60703779]
[1731719049437,3.3775577,3090.7,3090.1,3.64290795]
[1731719049676,3.23578,3090.5,3090.1,3.64290795]
[1731719049841,3.23578,3090.5,3090.1,0.64290795]
[1731719050020,3.23578,3090.5,3090.1,3.64290795]
[1731719050451,3.3775877,3090.7,3090.1,6.87903795]
[1731719050760,0.1420377,3090.7,3090.2,3.23594]
[1731719051124,0.1420377,3090.7,3090.2,6.4719]
[1731719051327,0.1420377,3090.7,3090.2,3.23594]
[1731719051669,0.1420377,3090.7,3090.1,1.73267374]
[1731719051670,3.3776277,3090.7,3090.1,1.73267374]
[1731719051864,3.3776277,3090.7,3090.1,4.96879374]
[1731719052078,0.1420377,3090.7,3090.4,3.23582]
[1731719052366,0.1420377,3090.7,3090.4,4.04482]
[1731719053064,0.8053,3092.3,3090.7,3.0]
[1731719053266,0.8053,3092.3,3091.4,0.809]
[1731719053466,3.23424,3092.0,3091.4,0.809]
[1731719053825,3.23426,3091.9,3091.3,3.23484]
[1731719055064,3.23426,3091.9,3091.2,3.0]
[1731719055260,3.23431,3091.9,3091.3,0.704401]
[1731719055437,3.23431,3091.9,3091.3,3.939261]
[1731719056146,3.23409,3092.1,3091.3,3.939261]
[1731719056354,3.23417,3092.0,3091.4,3.23477]
[1731719056663,3.23417,3092.0,3091.4,3.9286571]
[1731719056825,3.23417,3092.0,3091.4,0.6939171]
[1731719057847,3.23417,3092.0,3091.4,3.9286271]
[1731719059357,3.23428,3091.9,3091.4,0.6939171]
[1731719059567,3.23444,3091.8,3091.4,0.6939171]
[1731719059775,3.23444,3091.8,3091.3,0.704401]
[1731719060256,3.23444,3091.8,3091.3,3.704401]
[1731719061429,3.23447,3091.7,3091.3,0.704401]
[1731719062771,3.23447,3091.7,3091.3,3.704401]
[1731719063569,3.23437,3091.8,3091.3,3.704401]
[1731719064133,3.23419,3092.0,3091.3,3.704401]
[1731719064462,0.8053,3092.3,3091.2,3.87186282]
[1731719064463,3.23395,3092.2,3091.6,3.23455]
[1731719064727,3.23405,3092.1,3091.4,7.22709638]
[1731719064873,3.23405,3092.1,3091.5,3.23465]
[1731719065075,3.23405,3092.1,3091.5,4.31582464]
[1731719065276,3.23405,3092.1,3091.5,3.23465]
[1731719065830,0.8053,3092.3,3091.6,0.84619224]
[1731719066037,0.8053,3092.3,3091.7,3.23438]
[1731719066280,0.8053,3092.3,3091.8,3.23435]
[1731719066973,3.23376,3092.4,3091.8,3.23435]
[1731719067148,3.23376,3092.4,3091.9,0.323435]
[1731719068293,3.23376,3092.4,3091.9,3.557685]
[1731719068790,7.23578,3092.6,3091.9,3.557685]
[1731719068997,3.23369,3092.5,3091.9,3.557685]
[1731719069164,4.00217,3092.6,3091.9,3.557685]
[1731719069165,3.23374,3092.4,3091.9,3.557685]
[1731719069359,3.23374,3092.4,3091.9,0.323435]
[1731719070290,3.23376,3092.4,3092.0,0.3557785]
[1731719070450,3.23377,3092.4,3091.9,0.323435]
[1731719070942,3.23377,3092.4,3091.7,3.23438]
[1731719070943,3.23377,3092.4,3091.7,3.0]
[1731719071145,3.23404,3092.1,3091.8,0.35]
[1731719071390,6.46817,3092.1,3091.8,0.35]
[1731719071597,3.23404,3092.1,3091.8,0.35]
[1731719071874,3.23385,3092.3,3091.8,0.35]
[1731719071875,3.23385,3092.3,3091.8,3.41315]
[1731719072460,6.46738,3092.5,3091.8,3.64742]
[1731719072792,3.23374,3092.4,3091.8,3.64742]
[1731719073444,3.23374,3092.4,3091.9,3.23423]
[1731719073650,3.65563,3092.6,3092.0,3.23408]
[1731719073888,3.65563,3092.6,3092.1,0.7774]
[1731719074087,3.23368,3092.5,3092.1,0.7774]
[1731719074993,3.18368,3092.5,3092.1,0.7774]
[1731719076187,3.65567,3092.6,3092.1,0.7774]
[1731719076394,3.23365,3092.5,3092.1,0.7774]
[1731719077755,4.10845,3092.7,3092.1,0.7774]
[1731719077981,3.23358,3092.6,3092.1,0.7774]
[1731719078190,0.875,3092.7,3092.6,7.01092]
[1731719078400,0.875,3092.7,3092.6,3.7774]
[1731719079067,0.875,3092.7,3092.6,7.01092]
[1731719079268,0.875,3092.7,3092.6,0.7774]
[1731719079471,0.875,3092.7,3092.6,7.01092]
[1731719080489,0.875,3092.7,3092.6,8.63644755]
[1731719080893,0.875,3092.7,3092.6,7.01092]
[1731719081779,0.875,3092.7,3092.6,7.13092]
[1731719083096,0.875,3092.7,3092.6,7.01092]
[1731719083718,0.875,3092.7,3092.6,7.07558349]
[1731719083885,0.875,3092.7,3092.6,7.33452]
[1731719084284,0.875,3092.7,3092.6,10.85386732]